[Event "Lueneburg Open-A 2019"]
[Site "Lueneburg"]
[Date "2019.08.08"]
[Round "6.18"]
[White "Dijkhuis, Oele"]
[Black "Ploder, Udo"]
[Result "0-1"]
[ECO "C44"]
[WhiteElo "2161"]
[BlackElo "1942"]
[Annotator "ChessBase"]
[PlyCount "126"]
[EventDate "2019.08.03"]
[EventType "swiss"]
[EventCountry "GER"]
[SourceTitle "playchess.com"]
[Source "ChessBase"]
[SourceQuality "1"]
[TimeControl "40/5400+30:1800+30"]

1. e4 {[%emt 0:00:00]} e5 {[%emt 0:00:00]} 2. Nf3 {[%emt 0:00:00]} Nc6 {[%emt 0:00:00]} 3. c3 {[%emt 0:00:00]} Nf6 {[%emt 0:00:28]} 4. d4 {[%emt 0:00:09]} Nxe4 {[%emt 0:00:18]} 5. d5 {[%emt 0:00:20]} Bc5 {[%emt 0:00:15]} 6. dxc6 {[%emt 0:00:10]} Bxf2+ {[%emt 0:00:12]} 7. Ke2 {[%emt 0:00:07]} Bb6 {[%emt 0:00:22]} 8. Qd5 {[%emt 0:00:08]} Nf2 {[%emt 0:00:31]} 9. Rg1 {[%emt 0:00:08]} O-O {[%emt 0:00:28]} 10. cxb7 {[%emt 0:00:09]} Bxb7 {[%emt 0:00:13]} 11. Qxb7 {[%emt 0:00:07]} Qf6 {[%emt 0:00:21]} 12. Na3 {[%emt 0:00:13]} e4 {[%emt 0:03:34]} 13. Nc4 {[%emt 0:00:23]} Rab8 {[%emt 0:04:23]} 14. Qd5 {[%emt 0:08:46]} Ng4 {[%emt 0:19:33]} 15. Nxb6 {[%emt 0:51:59]} Rxb6 {[%emt 0:00:32]} 16. Qg5 {[%emt 0:00:31]} exf3+ {[%emt 0:08:23]} 17. Kd1 {[%emt 0:02:15]} f2 {[%emt 0:11:19]} 18. Rh1 {[%emt 0:00:02]} Qe6 {[%emt 0:01:18]} 19. Kc2 {[%emt 0:01:53]} Qe4+ {[%emt 0:06:28]} 20. Bd3 {[%emt 0:00:47]} Qxg2 {[%emt 0:00:13]} 21. Bd2 {[%emt 0:00:35]} Re8 {[%emt 0:04:57]} 22. Rhf1 {[%emt 0:04:48]} Rf6 {[%emt 0:03:09]} 23. Bf5 {[%emt 0:07:46]} Ne3+ {[%emt 0:08:49]} 24. Bxe3 {[%emt 0:00:06]} Qxg5 {[%emt 0:00:07]} 25. Bxh7+ {[%emt 0:00:06]} Kxh7 {[%emt 0:00:15]} 26. Bxg5 {[%emt 0:00:05]} Rf5 {[%emt 0:02:46]} 27. Bh4 {[%emt 0:00:42]} Re2+ {[%emt 0:00:58]} 28. Kd3 {[%emt 0:06:28]} Rxb2 {[%emt 0:00:13]} 29. Ke4 {[%emt 0:02:09]} g6 {[%emt 0:00:28]} 30. a4 {[%emt 0:03:42]} c5 {[%emt 0:02:40]} 31. Bg3 {[%emt 0:06:07]} d5+ {[%emt 0:02:54]} 32. Ke3 {[%emt 0:00:08]} Rc2 {[%emt 0:03:35]} 33. Kd3 {[%emt 0:00:44]} Rb2 {[%emt 0:00:15]} 34. Ke3 {[%emt 0:01:13]} Rc2 {[%emt 0:01:45]} 35. Rxf2 {[%emt 0:01:19]} d4+ {[%emt 0:00:29]} 36. cxd4 {[%emt 0:01:26]} cxd4+ {[%emt 0:00:14]} 37. Kxd4 {[%emt 0:00:12]} Rcxf2 {[%emt 0:00:11]} 38. Bxf2 {[%emt 0:00:03]} Rxf2 {[%emt 0:00:09]} 39. Kc5 {[%emt 0:01:58]} Rxh2 {[%emt 0:02:39]} 40. Kb5 {[%emt 0:01:19]} Re2 {[%emt 0:04:32]} 41. a5 {[%emt 0:02:18]} g5 {[%emt 0:00:38]} 42. Rc1 {[%emt 0:01:57]} Re7 {[%emt 0:01:20]} 43. a6 {[%emt 0:04:06]} g4 {[%emt 0:07:03]} 44. Rh1+ {[%emt 0:03:32]} Kg7 {[%emt 0:01:43]} 45. Rh5 {[%emt 0:01:07]} f6 {[%emt 0:00:57]} 46. Kc6 {[%emt 0:00:38]} Kg6 {[%emt 0:00:38]} 47. Rh8 {[%emt 0:00:26]} g3 {[%emt 0:00:48]} 48. Rh3 {[%emt 0:01:29]} Re3 {[%emt 0:00:42]} 49. Rh8 {[%emt 0:01:45]} Kg7 {[%emt 0:00:51]} 50. Rh1 {[%emt 0:00:15]} Rb3 {[%emt 0:00:22]} 51. Kd5 {[%emt 0:00:29]} f5 {[%emt 0:01:28]} 52. Ke5 {[%emt 0:00:17]} Rf3 {[%emt 0:00:57]} 53. Rh5 {[%emt 0:00:41]} Kg6 {[%emt 0:00:38]} 54. Rh8 {[%emt 0:00:05]} f4 {[%emt 0:00:42]} 55. Ra8 {[%emt 0:00:32]} Kg5 {[%emt 0:01:13]} 56. Rxa7 {[%emt 0:01:35]} Re3+ {[%emt 0:00:44]} 57. Kd4 {[%emt 0:00:12]} Re8 {[%emt 0:04:12]} 58. Rb7 {[%emt 0:01:53]} f3 {[%emt 0:03:12]} 59. Rg7+ {[%emt 0:01:41]} Kf4 {[%emt 0:00:34]} 60. a7 {[%emt 0:02:20]} g2 {[%emt 0:01:40]} 61. Rf7+ {[%emt 0:00:36]} Kg3 {[%emt 0:00:49]} 62. Rg7+ {[%emt 0:00:24]} Kf2 {[%emt 0:00:27]} 63. Re7 {[%emt 0:01:45]} Rd8+ {[%emt 0:00:15]} 0-1

[Event "Lueneburg Open-A 2019"]
[Site "Lueneburg"]
[Date "2019.08.08"]
[Round "6.19"]
[White "Prasse, Philipp"]
[Black "Rick, Uwe"]
[Result "1/2-1/2"]
[ECO "B22"]
[WhiteElo "2003"]
[BlackElo "2113"]
[Annotator "NA"]
[PlyCount "80"]
[EventDate "2019.08.03"]
[EventType "swiss"]
[EventCountry "GER"]
[SourceTitle "playchess.com"]
[Source "ChessBase"]
[SourceQuality "1"]
[TimeControl "40/5400+30:1800+30"]

1. e4 {[%emt 0:00:00]} c5 {[%emt 0:00:04]} 2. c3 {[%emt 0:00:00]} Nf6 {[%emt 0:00:34]} 3. e5 {[%emt 0:00:00]} Nd5 {[%emt 0:00:08]} 4. d4 {[%emt 0:00:00]} cxd4 {[%emt 0:00:25]} 5. Nf3 {[%emt 0:00:00]} d6 {[%emt 0:00:29]} 6. cxd4 {[%emt 0:01:26]} Nc6 {[%emt 0:01:01]} 7. Bc4 {[%emt 0:00:38]} e6 {[%emt 0:01:10]} 8. O-O {[%emt 0:00:32]} Be7 {[%emt 0:01:11]} 9. Bd2 {[%emt 0:00:31]} O-O {[%emt 0:02:43]} 10. Nc3 {[%emt 0:00:30]} dxe5 {[%emt 0:06:30]} 11. dxe5 {[%emt 0:00:48]} Nxc3 {[%emt 0:05:42]} 12. Bxc3 {[%emt 0:00:08]} Qb6 {[%emt 0:03:12]} 13. Qe2 {[%emt 0:06:10]} Bd7 {[%emt 0:04:49]} 14. Rad1 {[%emt 0:08:33]} Rfd8 {[%emt 0:00:26]} 15. Qe4 {[%emt 0:15:19]} Nb4 {[%emt 0:11:22]} 16. Bxb4 {[%emt 0:09:32]} Qxb4 {[%emt 0:02:00]} 17. Bd3 {[%emt 0:01:55]} Qxe4 {[%emt 0:10:24]} 18. Bxe4 {[%emt 0:00:02]} Bb5 {[%emt 0:00:24]} 19. Rxd8+ {[%emt 0:02:01]} Rxd8 {[%emt 0:00:14]} 20. Rc1 {[%emt 0:01:11]} b6 {[%emt 0:01:50]} 21. h3 {[%emt 0:02:26]} Bc5 {[%emt 0:00:40]} 22. a3 {[%emt 0:01:18]} a5 {[%emt 0:00:25]} 23. g3 {[%emt 0:06:35]} h6 {[%emt 0:02:29]} 24. Kg2 {[%emt 0:00:34]} g5 {[%emt 0:03:15]} 25. g4 {[%emt 0:14:00]} Kf8 {[%emt 0:02:12]} 26. Kg3 {[%emt 0:03:36]} Ke7 {[%emt 0:02:12]} 27. b4 {[%emt 0:04:47]} axb4 {[%emt 0:02:52]} 28. axb4 {[%emt 0:00:01]} Bd4 {[%emt 0:02:50]} 29. Rc7+ {[%emt 0:01:08]} Kf8 {[%emt 0:00:21]} 30. Bc6 {[%emt 0:01:35]} Be2 {[%emt 0:09:31]} 31. Nxd4 {[%emt 0:00:52]} Rxd4 {[%emt 0:00:35]} 32. b5 {[%emt 0:01:49]} Rb4 {[%emt 0:01:55]} 33. Rb7 {[%emt 0:01:02]} Bxb5 {[%emt 0:01:17]} 34. Rxb6 {[%emt 0:00:37]} Rb3+ {[%emt 0:00:17]} 35. Kh2 {[%emt 0:00:45]} Bc4 {[%emt 0:00:31]} 36. Rxb3 {[%emt 0:00:16]} Bxb3 {[%emt 0:00:07]} 37. Kg3 {[%emt 0:01:13]} Ke7 {[%emt 0:01:17]} 38. f4 {[%emt 0:03:10]} f6 {[%emt 0:01:36]} 39. exf6+ {[%emt 0:00:11]} Kxf6 {[%emt 0:00:12]} 40. fxg5+ {[%emt 0:01:24]} hxg5 {[%emt 0:01:37]} 1/2-1/2

[Event "Lueneburg Open-A 2019"]
[Site "Lueneburg"]
[Date "2019.08.08"]
[Round "6.20"]
[White "Bosselmann, Tom Linus"]
[Black "Klages, Hans Juergen"]
[Result "1/2-1/2"]
[ECO "B21"]
[WhiteElo "2000"]
[BlackElo "2095"]
[Annotator "NA"]
[PlyCount "36"]
[EventDate "2019.08.03"]
[EventType "swiss"]
[EventCountry "GER"]
[SourceTitle "playchess.com"]
[Source "ChessBase"]
[SourceQuality "1"]
[TimeControl "40/5400+30:1800+30"]

1. e4 {[%emt 0:00:00]} c5 {[%emt 0:00:00]} 2. d3 {[%emt 0:00:00]} g6 {[%emt 0:00:00]} 3. f4 {[%emt 0:00:00]} Bg7 {[%emt 0:00:00]} 4. Nf3 {[%emt 0:00:00]} e6 {[%emt 0:00:55]} 5. Be2 {[%emt 0:00:00]} Ne7 {[%emt 0:00:56]} 6. O-O {[%emt 0:00:01]} O-O {[%emt 0:00:11]} 7. c3 {[%emt 0:00:03]} d5 {[%emt 0:00:37]} 8. e5 {[%emt 0:00:16]} b6 {[%emt 0:03:15]} 9. Na3 {[%emt 0:01:55]} Ba6 {[%emt 0:04:55]} 10. Nc2 {[%emt 0:00:35]} Nbc6 {[%emt 0:00:51]} 11. Be3 {[%emt 0:01:36]} f6 {[%emt 0:05:42]} 12. d4 {[%emt 0:02:09]} Bxe2 {[%emt 0:00:12]} 13. Qxe2 {[%emt 0:00:07]} cxd4 {[%emt 0:02:49]} 14. cxd4 {[%emt 0:02:13]} f5 {[%emt 0:04:51]} 15. h3 {[%emt 0:08:56]} Rc8 {[%emt 0:06:19]} 16. Na3 {[%emt 0:01:54]} Qd7 {[%emt 0:00:30]} 17. Bd2 {[%emt 0:01:14]} Nd8 {[%emt 0:04:02]} 18. Rac1 {[%emt 0:06:16]} Nf7 {[%emt 0:00:18]} 1/2-1/2

[Event "Lueneburg Open-A 2019"]
[Site "Lueneburg"]
[Date "2019.08.08"]
[Round "6.21"]
[White "Chennaoui, Yasin"]
[Black "Probst, Alexander"]
[Result "1-0"]
[ECO "A09"]
[WhiteElo "2092"]
[BlackElo "1969"]
[Annotator "NA"]
[PlyCount "83"]
[EventDate "2019.08.03"]
[EventType "swiss"]
[EventCountry "GER"]
[SourceTitle "playchess.com"]
[Source "ChessBase"]
[SourceQuality "1"]
[TimeControl "40/5400+30:1800+30"]

1. g3 {[%emt 0:00:00]} d5 {[%emt 0:00:26]} 2. Nf3 {[%emt 0:00:03]} c5 {[%emt 0:01:02]} 3. Bg2 {[%emt 0:00:05]} Nc6 {[%emt 0:00:18]} 4. c4 {[%emt 0:00:05]} d4 {[%emt 0:02:17]} 5. e3 {[%emt 0:01:25]} Nf6 {[%emt 0:03:21]} 6. exd4 {[%emt 0:01:59]} Nxd4 {[%emt 0:02:46]} 7. d3 {[%emt 0:08:08]} g6 {[%emt 0:02:42]} 8. Nxd4 {[%emt 0:00:58]} cxd4 {[%emt 0:03:56]} 9. O-O {[%emt 0:02:46]} Bg7 {[%emt 0:00:40]} 10. b4 {[%emt 0:11:05]} O-O {[%emt 0:02:24]} 11. Nd2 {[%emt 0:12:35]} Bf5 {[%emt 0:02:55]} 12. Nf3 {[%emt 0:04:34]} Qd7 {[%emt 0:16:47]} 13. Bb2 {[%emt 0:08:01]} Bg4 {[%emt 0:05:26]} 14. Ne5 {[%emt 0:00:44]} Bxd1 {[%emt 0:02:54]} 15. Nxd7 {[%emt 0:00:20]} Nxd7 {[%emt 0:01:58]} 16. Rfxd1 {[%emt 0:01:48]} Rab8 {[%emt 0:00:33]} 17. a4 {[%emt 0:05:23]} e5 {[%emt 0:00:54]} 18. a5 {[%emt 0:01:02]} f5 {[%emt 0:00:47]} 19. Ba3 {[%emt 0:08:29]} Rfe8 {[%emt 0:02:12]} 20. Bd5+ {[%emt 0:03:58]} Kh8 {[%emt 0:01:09]} 21. c5 {[%emt 0:03:24]} Nf6 {[%emt 0:04:45]} 22. Bf7 {[%emt 0:00:45]} Re7 {[%emt 0:00:49]} 23. Bc4 {[%emt 0:00:15]} Bf8 {[%emt 0:07:07]} 24. Rac1 {[%emt 0:08:23]} Rd7 {[%emt 0:01:15]} 25. f4 {[%emt 0:04:51]} Ng4 {[%emt 0:01:33]} 26. h3 {[%emt 0:04:47]} Ne3 {[%emt 0:00:22]} 27. fxe5 {[%emt 0:00:04]} Nxd1 {[%emt 0:01:23]} 28. Rxd1 {[%emt 0:00:01]} Be7 {[%emt 0:08:26]} 29. Bc1 {[%emt 0:01:43]} Rf8 {[%emt 0:00:54]} 30. Bh6 {[%emt 0:00:33]} Rfd8 {[%emt 0:01:18]} 31. e6 {[%emt 0:00:34]} Rc7 {[%emt 0:01:11]} 32. Bf4 {[%emt 0:00:05]} Rcc8 {[%emt 0:00:13]} 33. Be5+ {[%emt 0:00:09]} Kg8 {[%emt 0:00:13]} 34. Rf1 {[%emt 0:02:48]} Kf8 {[%emt 0:02:03]} 35. g4 {[%emt 0:00:11]} Bxc5 {[%emt 0:02:15]} 36. bxc5 {[%emt 0:00:46]} Rxc5 {[%emt 0:00:11]} 37. Bf6 {[%emt 0:00:27]} Rd6 {[%emt 0:00:56]} 38. Re1 {[%emt 0:00:38]} Rxa5 {[%emt 0:01:24]} 39. e7+ {[%emt 0:00:16]} Ke8 {[%emt 0:00:56]} 40. Bf7+ {[%emt 0:00:13]} Kxf7 {[%emt 0:00:05]} 41. e8=Q+ {[%emt 0:30:09]} Kxf6 {[%emt 0:30:09]} 42. Qe7# {[%emt 0:00:08]} 1-0

[Event "Lueneburg Open-A 2019"]
[Site "Lueneburg"]
[Date "2019.08.08"]
[Round "6.22"]
[White "Thanisch, Matthias"]
[Black "Schulz, Daniel"]
[Result "1/2-1/2"]
[ECO "D79"]
[WhiteElo "1991"]
[BlackElo "2071"]
[Annotator "NA"]
[PlyCount "87"]
[EventDate "2019.08.03"]
[EventType "swiss"]
[EventCountry "GER"]
[SourceTitle "playchess.com"]
[Source "ChessBase"]
[SourceQuality "1"]
[TimeControl "40/5400+30:1800+30"]

1. d4 {[%emt 0:00:00]} g6 {[%emt 0:00:00]} 2. Nf3 {[%emt 0:00:00]} Bg7 {[%emt 0:00:00]} 3. g3 {[%emt 0:00:00]} Nf6 {[%emt 0:00:16]} 4. c4 {[%emt 0:00:05]} O-O {[%emt 0:00:10]} 5. Bg2 {[%emt 0:00:04]} c6 {[%emt 0:00:07]} 6. O-O {[%emt 0:00:07]} d5 {[%emt 0:00:05]} 7. cxd5 {[%emt 0:01:15]} cxd5 {[%emt 0:00:37]} 8. Ne5 {[%emt 0:00:46]} Nc6 {[%emt 0:02:02]} 9. Nc3 {[%emt 0:04:27]} Ne4 {[%emt 0:03:47]} 10. Nxc6 {[%emt 0:02:27]} bxc6 {[%emt 0:00:07]} 11. Nxe4 {[%emt 0:07:22]} dxe4 {[%emt 0:00:29]} 12. Bxe4 {[%emt 0:00:42]} Bh3 {[%emt 0:00:33]} 13. Bg2 {[%emt 0:13:12]} Bxg2 {[%emt 0:03:49]} 14. Kxg2 {[%emt 0:00:12]} Bxd4 {[%emt 0:02:51]} 15. Qc2 {[%emt 0:00:47]} Qb6 {[%emt 0:18:46]} 16. Rb1 {[%emt 0:07:18]} Rfd8 {[%emt 0:16:11]} 17. b3 {[%emt 0:03:42]} Qa6 {[%emt 0:09:00]} 18. Rd1 {[%emt 0:02:45]} Rd5 {[%emt 0:05:11]} 19. Bb2 {[%emt 0:06:47]} Bxb2 {[%emt 0:15:06]} 20. Rxd5 {[%emt 0:05:35]} cxd5 {[%emt 0:00:23]} 21. Rxb2 {[%emt 0:01:08]} Rc8 {[%emt 0:01:03]} 22. Qd2 {[%emt 0:00:11]} Qc6 {[%emt 0:00:26]} 23. Qd4 {[%emt 0:04:18]} Rc7 {[%emt 0:01:59]} 24. Rd2 {[%emt 0:02:38]} e6 {[%emt 0:01:40]} 25. h3 {[%emt 0:03:55]} a5 {[%emt 0:05:14]} 26. Kh2 {[%emt 0:04:22]} Qc1 {[%emt 0:03:14]} 27. Rd1 {[%emt 0:05:04]} Qc2 {[%emt 0:00:42]} 28. Qd2 {[%emt 0:07:21]} Qc5 {[%emt 0:02:11]} 29. Kg2 {[%emt 0:02:56]} h5 {[%emt 0:00:28]} 30. h4 {[%emt 0:00:54]} Rc8 {[%emt 0:00:50]} 31. Qd3 {[%emt 0:00:46]} Rc7 {[%emt 0:00:50]} 32. Rd2 {[%emt 0:01:11]} Qc1 {[%emt 0:00:51]} 33. Rd1 {[%emt 0:01:23]} Qc2 {[%emt 0:00:41]} 34. Qd2 {[%emt 0:00:52]} Qe4+ {[%emt 0:00:22]} 35. f3 {[%emt 0:00:31]} Qc2 {[%emt 0:02:11]} 36. Kf2 {[%emt 0:00:27]} Qc5+ {[%emt 0:01:40]} 37. Qd4 {[%emt 0:00:11]} Qc2 {[%emt 0:01:07]} 38. Qd2 {[%emt 0:01:24]} Qc5+ {[%emt 0:00:21]} 39. Qd4 {[%emt 0:00:01]} Qb5 {[%emt 0:01:26]} 40. Qd3 {[%emt 0:05:48]} Qb4 {[%emt 0:02:31]} 41. Qd4 {[%emt 0:35:42]} Qb5 {[%emt 0:02:57]} 42. Qd3 {[%emt 0:00:00]} Qc5+ {[%emt 0:08:23]} 43. Qd4 {[%emt 0:02:54]} Qc2 {[%emt 0:20:53]} 44. Qd2 1/2-1/2

[Event "Lueneburg Open-A 2019"]
[Site "Lueneburg"]
[Date "2019.08.08"]
[Round "6.23"]
[White "Koellner, Christof"]
[Black "Berres, Eric"]
[Result "1/2-1/2"]
[ECO "D00"]
[WhiteElo "2091"]
[BlackElo "1890"]
[Annotator "NA"]
[PlyCount "144"]
[EventDate "2019.08.03"]
[EventType "swiss"]
[EventCountry "GER"]
[SourceTitle "playchess.com"]
[Source "ChessBase"]
[SourceQuality "1"]
[TimeControl "40/5400+30:1800+30"]

1. d4 {[%emt 0:00:00]} Nf6 {[%emt 0:00:00]} 2. Bg5 {[%emt 0:00:03]} d5 {[%emt 0:00:00]} 3. e3 {[%emt 0:00:13]} c5 {[%emt 0:00:03]} 4. Bxf6 {[%emt 0:00:09]} gxf6 {[%emt 0:00:07]} 5. dxc5 {[%emt 0:00:16]} Nc6 {[%emt 0:00:19]} 6. a3 {[%emt 0:00:42]} e6 {[%emt 0:06:19]} 7. c4 {[%emt 0:04:15]} d4 {[%emt 0:08:20]} 8. Nf3 {[%emt 0:19:53]} Qa5+ {[%emt 0:07:10]} 9. Qd2 {[%emt 0:02:16]} dxe3 {[%emt 0:00:39]} 10. fxe3 {[%emt 0:03:33]} Bxc5 {[%emt 0:06:46]} 11. Kf2 {[%emt 0:07:45]} Qxd2+ {[%emt 0:08:55]} 12. Nbxd2 {[%emt 0:00:16]} a5 {[%emt 0:08:13]} 13. Ne4 {[%emt 0:01:28]} Be7 {[%emt 0:00:13]} 14. Rd1 {[%emt 0:02:34]} O-O {[%emt 0:15:34]} 15. Be2 {[%emt 0:04:25]} b6 {[%emt 0:02:25]} 16. Nd6 {[%emt 0:07:03]} Rd8 {[%emt 0:02:04]} 17. Nb5 {[%emt 0:04:22]} Bb7 {[%emt 0:00:40]} 18. Nbd4 {[%emt 0:04:24]} Rac8 {[%emt 0:03:10]} 19. Nxc6 {[%emt 0:00:30]} Bxc6 {[%emt 0:00:28]} 20. Nd4 {[%emt 0:02:08]} Bb7 {[%emt 0:00:43]} 21. a4 {[%emt 0:04:51]} Ba6 {[%emt 0:06:31]} 22. b3 {[%emt 0:00:52]} Bc5 {[%emt 0:01:22]} 23. Bf3 {[%emt 0:00:26]} Bxd4 {[%emt 0:00:49]} 24. exd4 {[%emt 0:00:29]} Rc7 {[%emt 0:01:59]} 25. g4 {[%emt 0:01:41]} Bb7 {[%emt 0:00:44]} 26. Bxb7 {[%emt 0:01:11]} Rxb7 {[%emt 0:00:06]} 27. Ke3 {[%emt 0:00:51]} Kf8 {[%emt 0:01:36]} 28. Rhf1 {[%emt 0:00:35]} Ke7 {[%emt 0:01:02]} 29. Rf4 {[%emt 0:03:54]} Rbd7 {[%emt 0:02:42]} 30. Re4 {[%emt 0:07:56]} Kf8 {[%emt 0:04:49]} 31. Rf1 {[%emt 0:01:06]} Kg7 {[%emt 0:00:35]} 32. Kd3 {[%emt 0:00:50]} Rd6 {[%emt 0:01:06]} 33. Kc3 {[%emt 0:00:25]} R8d7 {[%emt 0:02:06]} 34. Rf3 {[%emt 0:00:15]} Kg6 {[%emt 0:01:48]} 35. h4 {[%emt 0:01:58]} Rc7 {[%emt 0:02:05]} 36. Rd3 {[%emt 0:01:36]} Kg7 {[%emt 0:01:44]} 37. Re2 {[%emt 0:06:47]} Rcd7 {[%emt 0:00:57]} 38. Rb2 {[%emt 0:00:41]} Rc7 {[%emt 0:00:42]} 39. Kd2 {[%emt 0:03:10]} Rc8 {[%emt 0:01:34]} 40. Ke3 {[%emt 0:00:16]} h6 {[%emt 0:02:49]} 41. Rf2 {[%emt 0:31:28]} Rcd8 {[%emt 0:05:28]} 42. Ke4 {[%emt 0:00:00]} R6d7 {[%emt 0:01:56]} 43. Rfd2 {[%emt 0:00:00]} Rd6 {[%emt 0:02:18]} 44. h5 {[%emt 0:00:00]} R8d7 {[%emt 0:02:48]} 45. Rf2 {[%emt 0:00:00]} Rd8 {[%emt 0:00:35]} 46. Ke3 {[%emt 0:00:00]} R6d7 {[%emt 0:00:34]} 47. Ke4 {[%emt 0:00:00]} Rd6 {[%emt 0:00:08]} 48. Rfd2 {[%emt 0:00:00]} R8d7 {[%emt 0:00:30]} 49. c5 {[%emt 0:00:00]} Rc6 {[%emt 0:00:28]} 50. Rc2 {[%emt 0:00:00]} Rd5 {[%emt 0:01:37]} 51. Rdc3 {[%emt 0:00:00]} Rg5 {[%emt 0:01:33]} 52. Kf4 {[%emt 0:00:00]} e5+ {[%emt 0:01:30]} 53. dxe5 {[%emt 0:00:00]} fxe5+ {[%emt 0:00:04]} 54. Ke4 {[%emt 0:00:00]} Rxg4+ {[%emt 0:01:18]} 55. Kd5 {[%emt 0:00:00]} Rxc5+ {[%emt 0:00:28]} 56. Rxc5 {[%emt 0:00:00]} bxc5 {[%emt 0:00:03]} 57. Rxc5 {[%emt 0:00:00]} e4 {[%emt 0:00:50]} 58. Kd4 {[%emt 0:00:00]} Rg5 {[%emt 0:02:08]} 59. Rb5 {[%emt 0:00:00]} Rg3 {[%emt 0:04:49]} 60. Kxe4 {[%emt 0:00:00]} Kf6 {[%emt 0:00:59]} 61. Kd4 {[%emt 0:00:29]} Ke7 {[%emt 0:01:41]} 62. Rxa5 {[%emt 0:07:05]} Rxb3 {[%emt 0:00:11]} 63. Ra6 {[%emt 0:00:22]} Ra3 {[%emt 0:02:39]} 64. Ke5 {[%emt 0:01:14]} f6+ {[%emt 0:01:25]} 65. Kf5 {[%emt 0:00:20]} Rg3 {[%emt 0:01:32]} 66. Ra7+ {[%emt 0:00:19]} Kd6 {[%emt 0:00:43]} 67. Kxf6 {[%emt 0:03:39]} Rg5 {[%emt 0:00:06]} 68. Ra6+ {[%emt 0:00:46]} Kc7 {[%emt 0:00:39]} 69. Ra7+ {[%emt 0:00:20]} Kb6 {[%emt 0:00:32]} 70. Re7 {[%emt 0:00:31]} Rxh5 {[%emt 0:00:23]} 71. Re5 {[%emt 0:00:23]} Rxe5 {[%emt 0:00:09]} 72. Kxe5 {[%emt 0:00:02]} Ka5 {[%emt 0:00:07]} 1/2-1/2

[Event "Lueneburg Open-A 2019"]
[Site "Lueneburg"]
[Date "2019.08.08"]
[Round "6.24"]
[White "Schwarz, Jochen"]
[Black "Garbuszus, Juergen"]
[Result "1/2-1/2"]
[ECO "A10"]
[WhiteElo "1909"]
[BlackElo "2070"]
[Annotator "NA"]
[PlyCount "102"]
[EventDate "2019.08.03"]
[EventType "swiss"]
[EventCountry "GER"]
[SourceTitle "playchess.com"]
[Source "ChessBase"]
[SourceQuality "1"]
[TimeControl "40/5400+30:1800+30"]

1. c4 {[%emt 0:00:00]} f5 {[%emt 0:00:00]} 2. Nc3 {[%emt 0:00:00]} Nf6 {[%emt 0:00:00]} 3. Nf3 {[%emt 0:00:49]} g6 {[%emt 0:00:00]} 4. g3 {[%emt 0:01:41]} Bg7 {[%emt 0:00:00]} 5. Bg2 {[%emt 0:00:24]} O-O {[%emt 0:00:01]} 6. O-O {[%emt 0:01:17]} d6 {[%emt 0:00:03]} 7. d3 {[%emt 0:01:28]} Nc6 {[%emt 0:01:51]} 8. h3 {[%emt 0:04:57]} Nh5 {[%emt 0:04:07]} 9. e4 {[%emt 0:02:52]} f4 {[%emt 0:12:02]} 10. g4 {[%emt 1:21:32]} Nf6 {[%emt 1:16:56]} 11. d4 {[%emt 0:00:00]} e5 {[%emt 0:00:00]} 12. dxe5 {[%emt 0:00:00]} dxe5 {[%emt 0:00:00]} 13. g5 {[%emt 0:00:00]} Ne8 {[%emt 0:00:00]} 14. Nd5 {[%emt 0:00:00]} Be6 {[%emt 0:00:00]} 15. b3 {[%emt 0:00:00]} Nd6 {[%emt 0:00:00]} 16. Re1 {[%emt 0:00:00]} Rf7 {[%emt 0:00:00]} 17. Bb2 {[%emt 0:00:00]} Qd7 {[%emt 0:00:00]} 18. Kh2 {[%emt 0:00:00]} Re8 {[%emt 0:00:00]} 19. Qd3 {[%emt 0:00:00]} Qd8 {[%emt 0:00:00]} 20. Rad1 {[%emt 0:00:00]} Rd7 {[%emt 0:00:00]} 21. Qe2 {[%emt 0:00:00]} Nf7 {[%emt 0:00:00]} 22. h4 {[%emt 0:00:00]} Bg4 {[%emt 0:00:00]} 23. Bh3 {[%emt 0:00:00]} Bxh3 {[%emt 0:00:00]} 24. Kxh3 {[%emt 0:00:00]} Qc8 {[%emt 0:00:00]} 25. Kg2 {[%emt 0:00:00]} Ncd8 {[%emt 0:00:00]} 26. Nh2 {[%emt 0:00:00]} c6 {[%emt 0:00:00]} 27. Nb4 {[%emt 0:00:00]} Ne6 {[%emt 0:00:00]} 28. f3 {[%emt 0:00:00]} Red8 {[%emt 0:00:00]} 29. Ng4 {[%emt 0:00:00]} Qc7 {[%emt 0:00:00]} 30. Bc3 {[%emt 0:00:00]} h6 {[%emt 0:00:00]} 31. gxh6 {[%emt 0:00:00]} Nxh6 {[%emt 0:00:00]} 32. Nxh6+ {[%emt 0:00:00]} Bxh6 {[%emt 0:00:00]} 33. Nd3 {[%emt 0:00:00]} Bg7 {[%emt 0:00:00]} 34. Rd2 {[%emt 0:00:00]} Bf6 {[%emt 0:00:00]} 35. Red1 {[%emt 0:00:00]} Rh7 {[%emt 0:00:00]} 36. Nf2 {[%emt 0:00:00]} Nd4 {[%emt 0:00:00]} 37. Bxd4 {[%emt 0:00:32]} exd4 {[%emt 0:00:35]} 38. Ng4 {[%emt 0:00:12]} Bh8 {[%emt 0:02:46]} 39. e5 {[%emt 0:01:54]} c5 {[%emt 0:01:54]} 40. Qe4 {[%emt 0:01:35]} Qf7 {[%emt 0:00:04]} 41. Re2 {[%emt 0:39:01]} Qf5 {[%emt 0:35:16]} 42. Rh1 {[%emt 0:00:00]} d3 {[%emt 0:00:00]} 43. Rd2 {[%emt 0:00:00]} Qxe4 {[%emt 0:00:00]} 44. fxe4 {[%emt 0:00:00]} Re7 {[%emt 0:00:00]} 45. Kf3 {[%emt 0:00:00]} Bxe5 {[%emt 0:00:00]} 46. Nxe5 {[%emt 0:00:00]} Rxe5 {[%emt 0:00:00]} 47. Kxf4 {[%emt 0:00:00]} Re6 {[%emt 0:00:00]} 48. Rh3 {[%emt 0:00:00]} Rf8+ {[%emt 0:00:00]} 49. Ke3 {[%emt 0:00:00]} Rfe8 {[%emt 0:00:00]} 50. Kxd3 {[%emt 0:00:00]} Rxe4 {[%emt 0:00:00]} 51. Rg2 {[%emt 0:00:00]} Rd4+ {[%emt 0:00:00]} 1/2-1/2